lending/lending_fUSD_20240124
["ID","MTS","AMOUNT","RATE_DAILY","PERIOD"]
[312617020,1706095848172,-175.79,0.0003568,2]
[312617021,1706095848183,-174.55009017,0.00035895,5]
[312617022,1706095848192,-3835.22467741,0.00035897,4]
[312617023,1706095848225,-1611.4,0.00035897,4]
[312617105,1706097031344,-450.0,0.00025,3]
[312617106,1706097031353,-1585.88267064,0.00025,2]
[312617108,1706097031363,-500.0,0.00026999,2]
[312617109,1706097031372,-500.0,0.00027,3]
[312617110,1706097031382,-160.24,0.00027397,2]
[312617111,1706097031391,-157.95,0.00027397,2]
[312617112,1706097031401,-500.0,0.000274,2]
[312617113,1706097031416,-550.0,0.00029,3]
[312617114,1706097031425,-2500.0,0.0003,2]
[312617115,1706097031434,-256.0,0.00030103,2]
[312617116,1706097031444,-155.0,0.00030998,2]
[312617117,1706097031729,-232.47565779,0.00031,3]
[312617118,1706097032423,-367.52434221,0.00031,3]
[312617119,1706097032434,-518.5775685,0.000315,2]
[312617120,1706097032448,-481.4224315,0.000315,2]
[312617121,1706097032457,-166.38192492,0.00032512,2]
[312617122,1706097032467,-87.62779356,0.00032611,3]
[312617123,1706097032479,-312.37220644,0.00032611,3]
[312617124,1706097032490,-787.62779356,0.00032612,2]
[312617125,1706097032501,-12.37220644,0.00032612,2]
[312617126,1706097032511,-160.24,0.00032877,2]
[312617127,1706097032521,-650.0,0.00033,3]
[312617128,1706097032531,-220.07,0.00033095,2]
[312617129,1706097032540,-150.0,0.00033103,2]
[312617130,1706097032550,-263.7947081,0.00033798,2]
[312617131,1706097032559,-188.60698168,0.00033799,3]
[312617132,1706097032573,-211.39301832,0.00033799,3]
[312617133,1706097032583,-158.18,0.000338,2]
[312617134,1706097032592,-158.18,0.000338,2]
[312617135,1706097032602,-277.07342168,0.000338,2]
[312617136,1706097032622,-455.6397856,0.000338,2]
[312617137,1706097032634,-1995.00679272,0.000338,2]
[312617138,1706097032644,-2727.72,0.000338,2]
[312617139,1706097032653,-947.03574491,0.000338,2]
[312617140,1706097032678,-1780.68425509,0.000338,2]
[312617141,1706097032687,-1047.65044985,0.000338,2]
[312617143,1706097032785,-1680.06955015,0.000338,2]
[312617144,1706097032795,-2727.72,0.000338,2]
[312617145,1706097032805,-2727.72,0.000338,2]
[312617146,1706097032814,-2727.72,0.000338,2]
[312617147,1706097032824,-2704.25710505,0.000338,2]
[312617159,1706097038221,-23.46289495,0.000338,2]
[312617161,1706097038230,-378.13710505,0.000338,2]
[312617178,1706097038465,-1850.72944375,0.000338,2]
[312617180,1706097040660,-498.8534512,0.000338,2]
[312617181,1706097040669,-708.0085488,0.000338,2]
[312617194,1706097042450,-565.44502803,0.000338,2]
[312617197,1706097042588,-1454.26642317,0.000338,2]
[312617198,1706097042598,-2727.72,0.000338,2]
[312617199,1706097042608,-530.04697919,0.000338,2]
[312617200,1706097042619,-1118.38400007,0.000338,2]
[312617201,1706097042643,-1079.28902074,0.000338,2]
[312617202,1706097042652,-2727.72,0.000338,2]
[312617203,1706097042662,-2727.72,0.000338,2]
[312617204,1706097042672,-2727.72,0.000338,2]
[312617205,1706097042681,-2727.72,0.000338,2]
[312617206,1706097042691,-2727.72,0.000338,2]
[312617207,1706097042700,-2727.72,0.000338,2]
[312617208,1706097042709,-2727.72,0.000338,2]
[312617209,1706097042719,-2727.72,0.000338,2]
[312617210,1706097042728,-152.85,0.000338,2]
[312617211,1706097042737,-152.85,0.000338,2]
[312617212,1706097042746,-1000.0,0.00034,4]
[312617213,1706097042755,-2830.33223488,0.0003409,2]
[312617214,1706097042768,-428.04341072,0.00034672,14]
[312617215,1706097042778,-165.35932255,0.00034672,4]
[312617216,1706097042787,-4499.88278887,0.00034672,7]
[312617217,1706097042797,-1000.0,0.00034672,7]
[312617218,1706097042807,-249.94139444,0.00034672,7]
[312617219,1706097042818,-301.07524185,0.00034672,7]
[312617220,1706097042828,-231.52149919,0.00034672,7]
[312617221,1706097042837,-328.12252332,0.00034672,7]
[312617222,1706097042846,-750.78358537,0.00034672,7]
[312617223,1706097042856,-250.0,0.00034876,2]
[312617224,1706097042865,-222.74,0.00034876,2]
[312617225,1706097042874,-249.46,0.00034876,2]
[312617226,1706097042883,-500.0,0.00034894,2]
[312617227,1706097042893,-194.3,0.00034999,2]
[312617228,1706097042902,-22844.66,0.00034999,2]
[312617230,1706097042911,-16468.17558788,0.00035,2]
[312617232,1706097042921,-700.0,0.00035,3]
[312617233,1706097042931,-1046.1789402,0.00035,2]
[312617235,1706097042940,-2000.0,0.00035034,2]
[312617236,1706097042950,-492.0,0.00035156,3]
[312617238,1706097042959,-1447.94653402,0.00035252,2]
[312617239,1706097042968,-220.07,0.00035359,2]
[312617240,1706097042977,-818.22,0.00035431,15]
[312617241,1706097042986,-178.26,0.00035436,2]
[312617242,1706097042995,-250.0,0.00035451,2]
[312617243,1706097043003,-163.39,0.00035463,2]
[312617244,1706097043013,-5652.56,0.00035509,2]
[312617245,1706097043022,-1447.94653402,0.00035593,2]
[312617246,1706097043031,-1500.0,0.000356,2]
[312617247,1706097043041,-3000.0,0.0003568,2]
[312617248,1706097043050,-9899.68892986,0.00035897,4]
[312617249,1706097043059,-347.65,0.00035897,7]
[312617250,1706097043068,-1971.77098362,0.00035897,2]
[312617251,1706097043077,-200.0,0.00035897,2]
[312617252,1706097043086,-315.928454,0.00035897,4]
[312617253,1706097043095,-452.47052236,0.00035897,7]
[312617254,1706097043104,-500.0,0.00035897,2]
[312617255,1706097043113,-500.0,0.00035897,2]
[312617256,1706097043122,-4015.74894396,0.00035897,2]
[312617257,1706097043131,-430.79204526,0.00035899,4]
[312617258,1706097043140,-1490.0,0.000359,12]
[312617259,1706097043150,-175.78,0.00035951,2]
[312617260,1706097043159,-1815.06,0.0003596,5]
[312617261,1706097043168,-200.0,0.00035968,2]
[312617262,1706097043177,-156.60854892,0.00035976,2]
[312617263,1706097043187,-151.41445856,0.00035996,2]
[312617264,1706097043196,-790.0,0.00036,2]
[312617265,1706097043205,-170.0,0.00036,2]
[312617266,1706097043214,-187.0,0.00036,2]
[312617267,1706097043224,-1800.0,0.00036,7]
[312617268,1706097043234,-178.0,0.00036,2]
[312617269,1706097043243,-1828.43,0.00036016,5]
[312617270,1706097043252,-1447.94653402,0.00036076,2]
[312617271,1706097043261,-156.60854892,0.00036152,2]
[312617272,1706097043270,-222.74,0.00036167,2]
[312617273,1706097043279,-506.29527335,0.00036172,2]
[312617274,1706097043289,-885.71,0.00036253,2]
[312617275,1706097043298,-4913.83838509,0.00036297,2]
[312617276,1706097043307,-156.60854892,0.00036328,2]
[312617277,1706097043316,-1000.0,0.000364,2]
[312617278,1706097043326,-156.60854892,0.00036504,2]
[312617279,1706097043336,-605.0,0.00036567,3]
[312617280,1706097043345,-666.0124,0.00036598,6]
[312617281,1706097043354,-156.60854892,0.00036679,2]
[312617282,1706097043363,-800.0,0.00036688,2]
[312617283,1706097043372,-666.0124,0.00036698,6]
[312617285,1706097043382,-517.8213,0.00036698,2]
[312617286,1706097043392,-402.31,0.00036715,2]
[312617287,1706097043406,-402.31,0.00036715,2]
[312617288,1706097043416,-402.31,0.00036715,2]
[312617289,1706097043425,-400.51,0.00036715,2]
[312617290,1706097043435,-466.060242,0.00036753,4]
[312617291,1706097043446,-666.0124,0.00036798,6]
[312617293,1706097043455,-156.60854892,0.00036855,2]
[312617294,1706097043464,-2911.697,0.000369,4]
[312617295,1706097043474,-2138.67574878,0.00036998,4]
[312617297,1706097043486,-415.19,0.00036998,4]
[312617298,1706097043496,-666.0124,0.00036998,8]
[312617299,1706097043505,-700.0,0.00037,2]
[312617301,1706097043514,-273.92483124,0.00037,2]
[312617302,1706097043524,-750.0,0.00037,3]
[312617303,1706097043534,-156.60854892,0.00037031,2]
[312617305,1706097043543,-666.0124,0.00037098,8]
[312617306,1706097043552,-1103.64974793,0.00037198,14]
[312617307,1706097043561,-666.0124,0.00037198,8]
[312617309,1706097043573,-156.60854892,0.00037207,2]
[312617310,1706097043582,-206.0,0.0003725,2]
[312617311,1706097043592,-181.87283,0.0003725,2]
[312617313,1706097043602,-150.0,0.0003726,2]
[312617314,1706097043611,-666.0124,0.00037298,8]
[312617315,1706097043620,-156.60854892,0.00037383,2]
[312617316,1706097043631,-170.0,0.00037397,2]
[312617317,1706097043640,-187.0,0.00037397,2]
[312617318,1706097043649,-178.0,0.00037397,2]
[312617319,1706097043660,-666.0124,0.00037398,8]
[312617320,1706097043672,-222.74,0.00037457,2]
[312617321,1706097043682,-666.0124,0.00037498,8]
[312617322,1706097043692,-280.79430241,0.0003751,4]
[312617323,1706097043702,-494.06742775,0.0003751,4]
[312617324,1706097043712,-210.65885199,0.0003751,4]
[312617325,1706097043722,-309.45195534,0.0003752,2]
[312617326,1706097043732,-156.60854892,0.00037559,2]
[312617327,1706097043742,-666.0124,0.00037598,8]
[312617328,1706097043751,-220.07,0.00037623,2]
[312617329,1706097043762,-20153.76994361,0.0003768,2]
[312617330,1706097043772,-666.0124,0.00037698,8]
[312617331,1706097043782,-289.52505914,0.00037708,4]
[312617332,1706097043791,-214.19078987,0.00037708,4]
[312617333,1706097043801,-401.96813058,0.00037708,4]
[312617334,1706097043811,-532.70995754,0.00037708,4]
[312617335,1706097043821,-156.60854892,0.00037735,2]
[312617336,1706097043831,-519.87357888,0.00037791,2]
[312617337,1706097043840,-666.0124,0.00037798,8]
[312617338,1706097043849,-2000.0,0.00037799,4]
[312617339,1706097043859,-1125.51454202,0.00037799,11]
[312617340,1706097043869,-5000.0,0.000378,3]
[312617341,1706097043879,-166.38192492,0.000378,2]
[312617342,1706097043889,-151.62129445,0.000378,2]
[312617343,1706097043898,-346.3013372,0.000378,2]
[312617344,1706097043908,-1224.72524086,0.000378,2]
[312617345,1706097043917,-215.48725571,0.00037851,2]
[312617346,1706097043927,-58000.0,0.00037874,3]
[312617347,1706097043939,-58000.0,0.00037882,3]
[312617348,1706097043948,-156.83242552,0.00037887,2]
[312617349,1706097043958,-1312.40756005,0.00037887,2]
[312617350,1706097043967,-798.39673577,0.00037887,14]
[312617351,1706097044212,-231.60168297,0.00037888,2]
[312617352,1706097044221,-972.3846374,0.00037889,2]
[312617353,1706097044230,-480.1523315,0.00037889,2]
[312617354,1706097044239,-5030.7615711,0.00037889,2]
[312617355,1706097044248,-155.35346228,0.00037889,4]
[312617356,1706097044257,-2035.74402954,0.00037889,4]
[312617357,1706097044267,-1557.06206998,0.00037889,4]
[312617358,1706097044276,-4695.32009176,0.00037889,4]
[312617359,1706097044285,-155.0,0.00037889,4]
[312617360,1706097044294,-2327.18492781,0.00037889,4]
[312617361,1706097044303,-4154.50907867,0.00037889,4]
[312617362,1706097044312,-2342.00814951,0.00037889,2]
[312617363,1706097044321,-468.43092977,0.00037889,2]
[312617364,1706097044331,-619.47197427,0.00037889,4]
[312617365,1706097044340,-870.18670608,0.00037889,2]
[312617366,1706097044349,-1448.0,0.00037889,2]
[312617367,1706097044358,-566.30060069,0.00037889,2]
[312617368,1706097044367,-399.82199951,0.0003789,4]
[312617369,1706097044376,-381.8137609,0.0003789,4]
[312617370,1706097044385,-362.38050012,0.0003789,4]
[312617371,1706097044396,-10146.23002079,0.0003789,2]
[312617372,1706097044408,-10683.86466397,0.00037891,4]
[312617373,1706097044417,-250.89843054,0.00037891,90]
[312617374,1706097044426,-2000.0,0.00037891,2]
[312617375,1706097044435,-200.0,0.00037891,2]
[312617376,1706097044445,-47459.08845067,0.00037891,3]
[312617377,1706097044453,-58000.0,0.00037891,3]
[312617378,1706097044463,-58000.0,0.00037891,3]
[312617379,1706097044473,-151.0,0.00037891,30]
[312617380,1706097044483,-325.8788751,0.00037896,2]
[312617381,1706097044493,-162.93943755,0.00037897,2]
[312617382,1706097044502,-442.22267169,0.00037897,14]
[312617383,1706097044512,-243.76318213,0.00037897,2]
[312617384,1706097044521,-501.99094937,0.00037897,4]
[312617385,1706097044530,-256.69655446,0.00037897,4]
[312617386,1706097044539,-174.0,0.00037898,5]
[312617387,1706097044549,-170.31424112,0.00037898,4]
[312617388,1706097044558,-296.09469979,0.00037898,2]
[312617389,1706097044567,-1035.08813186,0.00037898,8]
[312617390,1706097044577,-666.0124,0.00037898,8]
[312617391,1706097044587,-320025.54608907,0.000379,7]
[312617392,1706097044601,-2108.03273624,0.000379,7]
[312617393,1706097044612,-9350.48553595,0.000379,7]
[312617408,1706097046026,-664.62392199,0.000379,7]
[312617409,1706097046039,-1644.14514684,0.000379,7]
[312617410,1706097046091,-446.712,0.000379,7]
[312617411,1706097046103,-24266.22356416,0.000379,7]
[312617412,1706097046127,-5900.92027277,0.000379,7]
[312617413,1706097046137,-19520.78832293,0.000379,7]
[312617414,1706097046150,-308.54394295,0.000379,7]
[312617415,1706097046181,-897.31553628,0.000379,7]
[312617416,1706097046218,-1046.992628,0.00036075,2]
[312617435,1706097120204,5321.36585581,0.000155,2]
[312617436,1706097124820,603.93625596,0.0002,2]
[312617437,1706097146179,1883.25242554,0.00015,2]
[312617438,1706097157841,235.14103505,0.0002,2]
[312617443,1706097171088,389.96903832,0.0002,2]
[312617448,1706097218895,2181.93556743,0.0002,2]
[312617487,1706098231572,-858.16390953,0.00022499,2]
[312617489,1706098231601,-1398.25487138,0.00022499,2]
[312617490,1706098231611,-478.90161544,0.000225,2]
[312617491,1706098231621,-164.76762753,0.000229,2]
[312617492,1706098231631,-3727.53835644,0.00022998,4]
[312617493,1706098231641,-273.0036,0.00022999,2]
[312617494,1706098231650,-196787.84210077,0.00023,2]
[312617495,1706098231663,-66589.18632204,0.00023,2]
[312617496,1706098232175,-390.87776714,0.00023,2]
[312617497,1706098232194,-426.36,0.00023,2]
[312617498,1706098232258,-906.55457573,0.00023,2]
[312617499,1706098232279,-12505.77550274,0.00023,2]
[312617508,1706098232520,-12495.12766071,0.00023,2]
[312617510,1706098232548,-13009.98028182,0.00023,2]
[312617511,1706098232568,-550.63173173,0.00023,2]
[312617512,1706098237548,-501.7,0.00023,2]
[312617513,1706098237560,-1072.5504,0.00023,2]
[312617514,1706098237631,-5257.05587004,0.00023,2]
[312617515,1706098237643,-358.33485164,0.00023,2]
[312617516,1706098237655,-3020.66396125,0.00023,2]
[312617517,1706098237666,-113080.97328084,0.00023,2]
[312617518,1706098237690,-4963.49662326,0.00023,2]
[312617519,1706098237701,-21970.824,0.00023,2]
[312617520,1706098237713,-3740.42332155,0.00023,2]
[312617521,1706098237724,-403.22282,0.00023,2]
[312617522,1706098237736,-872.494305,0.00023,2]
[312617523,1706098237802,-706.17412331,0.00023,2]
[312617524,1706098237816,-5905.17429116,0.00023,2]
[312617525,1706098237827,-17422.55798449,0.00023,2]
[312617526,1706098237860,-3150.33324138,0.00023,2]
[312617527,1706098237871,-81080.50337551,0.00023,2]
[312617528,1706098237883,-317.13206227,0.00023,2]
[312617529,1706098237902,-310.51257539,0.00023,2]
[312617530,1706098237914,-804.84838118,0.00023,2]
[312617531,1706098237925,-741.27723955,0.00023,2]
[312617532,1706098237936,-420.8888349,0.00023,2]
[312617533,1706098240044,-298.33106,0.00023,2]
[312617534,1706098240063,-359.60538072,0.00023,2]
[312617535,1706098240093,-633.31635902,0.00023,2]
[312617536,1706098240206,-1202.66843251,0.00023,2]
[312617537,1706098240219,-1062.73661376,0.00023,2]
[312617538,1706098240234,-354.5962696,0.00023,2]
[312617539,1706098240247,-3179.34034772,0.00023,2]
[312617540,1706098240259,-8052.90167903,0.00023,2]
[312617541,1706098240271,-1973.04637153,0.00023,2]
[312617542,1706098240746,-2448.91411341,0.00023,2]
[312617543,1706098240768,-589.55763454,0.00023,2]
[312617544,1706098240791,-8519.37831227,0.00023,2]
[312617545,1706098240800,-5000.0,0.00023,2]
[312617546,1706098240811,-6933.78465717,0.00023,2]
[312617547,1706098240831,-2421.31069343,0.00023,2]
[312617553,1706098240907,-338.64724169,0.00023,2]
[312617555,1706098240918,-265.64892374,0.00023,2]
[312617580,1706098242611,-151.62129445,0.000229,2]
[312617581,1706098242620,-14733.67648589,0.00023,2]
[312617582,1706098242632,-521.81240141,0.00023,2]
[312617583,1706098242835,-500.0,0.00023,2]
[312617584,1706098242895,-666.59723267,0.00023,2]
[312617590,1706098245654,-722.895,0.00023,2]
[312617591,1706098245666,-858.33591374,0.00023,2]
[312617592,1706098245686,-7418.5433592,0.00023,2]
[312617598,1706098245854,-881.46525525,0.00023,2]
[312617614,1706098245995,-2913.13805861,0.00023,2]
[312617617,1706098260716,11341.74266566,0.00020699,5]
[312617624,1706099269732,284.33843659,0.00020699,2]
[312617625,1706099356636,546.16322699,0.00020699,7]
[312617626,1706099369951,1888.80010872,0.00021,5]
[312617627,1706099372641,472.45027859,0.00020699,7]
[312617628,1706099387944,1888.80010872,0.00021,5]
[312617629,1706099407946,1888.80010872,0.00021,5]
[312617630,1706099429947,1888.80010872,0.00021,5]
[312617647,1706099431719,-435.2659414,0.000228,2]
[312617649,1706099431730,-123.4260586,0.00022899,2]
[312617651,1706099431778,-2076.8449977,0.00022899,2]
[312617652,1706099431787,-154.02860311,0.00022899,2]
[312617653,1706099431797,-966.56737527,0.000229,2]
[312617654,1706099431806,-726.70036124,0.00022998,2]
[312617655,1706099431818,-4803.21620877,0.00022998,2]
[312617656,1706099431827,-941.78794294,0.00022999,2]
[312617657,1706099431837,-1054.75967693,0.00022999,2]
[312617658,1706099431846,-554.87959945,0.00023,2]
[312617659,1706099431889,-780.78081971,0.00023,2]
[312617660,1706099431952,-212843.19455951,0.00023,2]
[312617661,1706099431963,-102653.46197496,0.00023,2]
[312617662,1706099431974,-806.806,0.00023,2]
[312617663,1706099432005,-34582.94721253,0.00023,2]
[312617678,1706099437782,-148054.51867801,0.00023,2]
[312617679,1706099437792,-150.0,0.00023,2]
[312617680,1706099437802,-201.3561641,0.00024,2]
[312617681,1706099437811,-154.02860308,0.00024141,2]
[312617682,1706099437822,-2504.89,0.00024323,2]
[312617683,1706099437833,-546.41,0.00024323,2]
[312617684,1706099437842,-499.99,0.00024323,2]
[312617685,1706099437852,-150.17905371,0.00025,2]
[312617686,1706099437861,-1585.88267064,0.00025,2]
[312617687,1706099437870,-2816.79030259,0.00025,2]
[312617688,1706099437879,-2809.38499747,0.00025,2]
[312617689,1706099437889,-646.07906386,0.00025,7]
[312617690,1706099437898,-450.0,0.00025,3]
[312617691,1706099437907,-3242.03,0.00025,2]
[312617692,1706099437917,-624.78,0.00025,2]
[312617693,1706099437927,-1801.20226843,0.000251,2]
[312617694,1706099437937,-966.56737525,0.0002522,2]
[312617695,1706099437946,-154.02860308,0.00025383,2]
[312617696,1706099437956,-3479.0,0.000259,2]
[312617697,1706099437966,-25674.0,0.000259,2]
[312617698,1706099437975,-500.0,0.00026,2]
[312617699,1706099437985,-4177.56962069,0.00026,2]
[312617700,1706099437995,-341.95,0.00026489,2]
[312617701,1706099438004,-154.02860308,0.00026624,2]
[312617702,1706099438014,-443.26067976,0.00026923,2]
[312617703,1706099438023,-500.0,0.00027,3]
[312617704,1706099438033,-250.0,0.00027179,2]
[312617705,1706099438042,-2000.0,0.00027195,2]
[312617706,1706099438051,-1854.96,0.00027373,2]
[312617707,1706099438061,-250.0,0.00027381,2]
[312617708,1706099438072,-164.24,0.00027397,2]
[312617709,1706099438081,-163.42,0.00027397,2]
[312617710,1706099438090,-500.0,0.000274,2]
[312617711,1706099438100,-750.0,0.00027404,2]
[312617712,1706099438114,-1605.32,0.00027417,2]
[312617713,1706099438126,-500.0,0.00027436,2]
[312617714,1706099438135,-2328.07,0.00027448,2]
[312617715,1706099438144,-305.02,0.00027522,2]
[312617716,1706099438155,-966.56737525,0.0002754,3]
[312617717,1706099438165,-200.0,0.00027541,2]
[312617718,1706099438175,-160.34,0.00027578,2]
[312617719,1706099438185,-160.34,0.00027783,2]
[312617720,1706099438196,-154.02860308,0.00027866,2]
[312617721,1706099438207,-160.34,0.00027989,2]
[312617722,1706099438216,-160.34,0.00028194,2]
[312617723,1706099438226,-200.0,0.00028256,2]
[312617724,1706099438236,-1311.05,0.00028299,2]
[312617725,1706099438246,-480.0,0.00028302,2]
[312617726,1706099438255,-7639.41,0.00028323,2]
[312617727,1706099438265,-521.38,0.00028372,2]
[312617728,1706099438274,-160.34,0.00028399,2]
[312617729,1706099438284,-175.78,0.00028407,2]
[312617730,1706099438294,-1605.32,0.00028431,2]
[312617731,1706099438304,-4489.42,0.00028465,2]
[312617732,1706099438314,-713.71,0.00028468,2]
[312617733,1706099438323,-160.34,0.00028605,2]
[312617734,1706099438332,-272.59,0.00028659,2]
[312617735,1706099438342,-166.07,0.00028713,2]
[312617736,1706099438351,-341.95,0.00028753,2]
[312617737,1706099438361,-520.0,0.00028782,2]
[312617738,1706099438370,-160.34,0.0002881,2]
[312617739,1706099438379,-314.61792294,0.00029,2]
[312617740,1706099438390,-326.71167735,0.00029,2]
[312617741,1706099438399,-550.0,0.00029,3]
[312617742,1706099438409,-160.34,0.00029015,2]
[312617743,1706099438419,-154.02860308,0.00029108,2]
[312617744,1706099438429,-164.24,0.00029224,2]
[312617745,1706099438439,-1605.32,0.00029446,2]
[312617746,1706099438448,-175.70189121,0.000298,2]
[312617747,1706099438458,-966.56737525,0.0002986,4]
[312617748,1706099438471,-4652.70418125,0.0002996,2]
[312617749,1706099438480,-2500.0,0.0003,2]
[312617750,1706099438491,-155.0,0.0003,2]
[312617751,1706099438502,-157.93351956,0.0003,30]
[312617752,1706099438512,-3635.22551804,0.0003,4]
[312617753,1706099438521,-3000.0,0.0003,2]
[312617754,1706099438531,-521.38,0.00030016,2]
[312617755,1706099438541,-2939.82528793,0.000301,2]
[312617756,1706099438550,-163.42,0.00030137,2]
[312617757,1706099438559,-400.0,0.000302,2]
[312617758,1706099438569,-9957.897,0.00030325,2]
[312617759,1706099438578,-249.865,0.00030325,2]
[312617760,1706099438588,-154.02860308,0.0003035,2]
[312617761,1706099438597,-1605.32,0.0003046,2]
[312617762,1706099438607,-600.0,0.00031,3]
[312617763,1706099438617,-341.95,0.00031017,2]
[312617764,1706099438626,-164.24,0.0003105,2]
[312617765,1706099438636,-4616.01536233,0.0003143,4]
[312617766,1706099438646,-1605.32,0.00031474,2]
[312617767,1706099438656,-1000.0,0.000315,2]
[312617768,1706099438666,-154.02860308,0.00031591,2]
[312617769,1706099438675,-180.0,0.00031644,2]
[312617770,1706099438685,-521.38,0.0003166,2]
[312617771,1706099438694,-27537.9811286,0.000318,3]
[312617772,1706099438703,-480.0,0.0003184,2]
[312617773,1706099438713,-966.56737525,0.0003218,5]
[312617774,1706099438722,-520.0,0.00032379,2]
[312617775,1706099438732,-155.23241241,0.000327,2]
[312617776,1706099438742,-155.23241241,0.000327,2]
[312617777,1706099438751,-155.23241241,0.000327,2]
[312617778,1706099438761,-155.23241241,0.000327,2]
[312617779,1706099438771,-155.23241241,0.000327,2]
[312617780,1706099438780,-155.23241241,0.000327,2]
[312617781,1706099438790,-155.23241241,0.000327,2]
[312617782,1706099438799,-155.23241241,0.000327,2]
[312617783,1706099438808,-155.23241241,0.000327,2]
[312617784,1706099438818,-158.19,0.000328,2]
[312617785,1706099438828,-152.85,0.000328,2]
[312617786,1706099438837,-152.85,0.000328,2]
[312617787,1706099438846,-154.02860308,0.00032833,2]
[312617788,1706099438855,-1571.70756758,0.00032877,14]
[312617789,1706099438865,-163.42,0.00032877,2]
[312617790,1706099438875,-750.03,0.00032877,15]
[312617791,1706099438884,-166.66,0.00032877,2]
[312617792,1706099438894,-164.24,0.00032877,2]
[312617793,1706099438903,-1000.0,0.000329,2]
[312617794,1706099438913,-650.0,0.00033,3]
[312617795,1706099438922,-150.799607,0.00033,6]
[312617796,1706099438931,-155.23241241,0.00033215,2]
[312617797,1706099438941,-341.95,0.0003328,2]
[312617798,1706099438950,-521.38,0.00033304,2]
[312617799,1706099438959,-2212.51,0.000335,2]
[312617800,1706099438969,-2212.51,0.000335,2]
[312617801,1706099438978,-2212.51,0.000335,2]
[312617802,1706099438987,-2212.51,0.000335,2]
[312617803,1706099438996,-2212.51,0.000335,2]
[312617804,1706099439006,-2212.51,0.000335,2]
[312617805,1706099439016,-2212.51,0.000335,2]
[312617806,1706099439026,-2212.51,0.000335,2]
[312617807,1706099439036,-2212.51,0.000335,2]
[312617808,1706099439045,-2212.51,0.000335,2]
[312617809,1706099439055,-2212.51,0.000335,2]
[312617810,1706099439063,-2212.51,0.000335,2]
[312617811,1706099439073,-2212.51,0.000335,2]
[312617812,1706099439082,-2212.51,0.000335,2]
[312617813,1706099439091,-2212.51,0.000335,2]
[312617814,1706099439101,-2212.51,0.000335,2]
[312617815,1706099439111,-2212.51,0.000335,2]
[312617816,1706099439124,-2212.51,0.000335,2]
[312617817,1706099439134,-2212.51,0.000335,2]
[312617818,1706099439143,-2212.51,0.000335,2]
[312617819,1706099439153,-232.0,0.00034,5]
[312617820,1706099439163,-16537.13835919,0.00034,2]
[312617821,1706099439172,-1000.0,0.00034,4]
[312617822,1706099439182,-6209.59115552,0.00034,2]
[312617823,1706099439193,-154.02860308,0.00034075,2]
[312617824,1706099439202,-175.78,0.00034089,2]
[312617825,1706099439212,-155.23241241,0.00034362,2]
[312617826,1706099439222,-966.56737525,0.000345,7]
[312617827,1706099439231,-186.10754021,0.00034672,4]
[312617828,1706099439241,-1000.0,0.00034672,7]
[312617829,1706099439251,-1000.0,0.00034672,7]
[312617830,1706099439261,-294.65084931,0.00034672,7]
[312617831,1706099439270,-285.13790992,0.00034672,7]
[312617832,1706099439280,-819.66858915,0.00034672,7]
[312617833,1706099439290,-6914.11500804,0.00034672,7]
[312617834,1706099439300,-1383.40961231,0.00034672,7]
[312617835,1706099439309,-3974.83821379,0.00034672,7]
[312617836,1706099439319,-3133.81339088,0.00034672,7]
[312617837,1706099439329,-498.12278363,0.00034672,7]
[312617838,1706099439338,-1000.0,0.00034672,7]
[312617839,1706099439347,-1000.0,0.00034672,7]